bitfinex/quotes_SOLUSD_20250930
["timestamp","ask_amount","ask_price","bid_price","bid_amount"]
[1759190401228,0.66,213.12,213.1,0.1]
[1759190401900,3.15564816,213.17,213.1,0.1]
[1759190402200,0.66,213.13,213.1,0.1]
[1759190402527,0.66,213.16,213.1,0.82]
[1759190405331,33.32,213.15,213.1,17.24414299]
[1759190405511,33.32,213.15,213.11,0.72]
[1759190405833,33.32,213.15,213.12,0.72]
[1759190406337,0.66,213.14,213.1,17.24414299]
[1759190406507,0.66,213.14,213.1,16.52414299]
[1759190406711,33.32,213.15,213.11,0.72]
[1759190406911,33.32,213.15,213.12,5.41219219]
[1759190407127,0.66,213.14,213.12,4.69219219]
[1759190407634,33.32,213.15,213.12,5.41219219]
[1759190407835,33.98,213.15,213.12,4.69219219]
[1759190408010,33.32,213.15,213.12,5.41219219]
[1759190408210,33.32,213.15,213.11,4.69241236]
[1759190408427,0.66,213.14,213.11,5.41241236]
[1759190408812,33.32,213.15,213.11,4.69241236]
[1759190409016,0.66,213.14,213.1,12.65158141]
[1759190409213,0.66,213.13,213.1,13.37158141]
[1759190409452,0.66,213.14,213.11,0.72]
[1759190409736,33.32,213.15,213.11,0.72]
[1759190409916,0.66,213.14,213.11,0.72]
[1759190410310,0.66,213.14,213.12,4.69219219]
[1759190411143,33.32,213.15,213.13,0.72]
[1759190411547,33.98,213.15,213.12,4.69219219]
[1759190411712,33.32,213.15,213.12,5.41219219]
[1759190411918,33.28,213.14,213.12,5.41219219]
[1759190412431,11.83140175,213.19,213.12,5.41219219]
[1759190412641,0.66,213.15,213.12,5.41219219]
[1759190412816,0.66,213.14,213.12,4.69219219]
[1759190413636,37.97092259,213.18,213.11,4.69241236]
[1759190413954,0.66,213.14,213.1,0.1]
[1759190414312,3.15244466,213.18,213.11,0.72]
[1759190414527,0.66,213.14,213.11,0.72]
[1759190414912,0.66,213.15,213.11,0.72]
[1759190415109,0.68,213.15,213.11,0.72]
[1759190415338,33.28,213.17,213.11,0.72]
[1759190415539,0.68,213.16,213.1,4.7926269]
[1759190415855,0.68,213.15,213.1,4.7926269]
[1759190416024,37.97109869,213.17,213.1,4.7926269]
[1759190416338,0.68,213.16,213.1,4.7926269]
[1759190416542,0.68,213.15,213.1,4.7926269]
[1759190416842,0.68,213.14,213.1,5.4526269]
[1759190417030,37.97109869,213.17,213.1,5.4526269]
[1759190417220,0.68,213.14,213.1,5.4526269]
[1759190417736,0.68,213.13,213.1,5.4526269]
[1759190418038,0.68,213.15,213.11,0.66]
[1759190418238,33.96,213.17,213.12,0.66]
[1759190418416,0.68,213.16,213.12,0.66]
[1759190418730,0.68,213.15,213.1,5.4526269]
[1759190418932,0.68,213.14,213.1,0.1]
[1759190419134,0.68,213.13,213.1,0.76]
[1759190419321,37.97113191,213.17,213.1,5.45262032]
[1759190419523,0.68,213.16,213.1,4.79262032]
[1759190419722,0.68,213.15,213.1,0.1]
[1759190422143,4.6917519,213.14,213.1,0.1]
[1759190422345,0.68,213.13,213.1,0.1]
[1759190422549,33.26,213.12,213.1,0.1]
[1759190422743,0.68,213.11,213.1,0.1]
[1759190428425,1.88204296,213.13,213.1,0.1]
[1759190428426,1.88204296,213.13,213.1,4.7925354]
[1759190428633,33.26,213.12,213.1,4.7925354]
[1759190428841,33.26,213.12,213.11,0.67]
[1759190429930,33.26,213.12,213.1,4.7925354]
[1759190430336,33.26,213.12,213.11,0.67]
[1759190430539,33.26,213.12,213.11,5.36241236]
[1759190430879,33.26,213.12,213.11,4.69241236]
[1759190431358,33.26,213.12,213.11,5.36241236]
[1759190436558,33.26,213.12,213.11,4.69241236]
[1759190437867,33.26,213.12,213.1,0.1]
[1759190438060,33.94,213.12,213.1,0.1]
[1759190438261,33.26,213.12,213.1,0.1]
[1759190438460,33.26,213.12,213.1,4.79254581]
[1759190439157,33.26,213.12,213.1,5.46254581]
[1759190439640,33.26,213.12,213.1,4.79254581]
[1759190439847,33.26,213.12,213.11,0.67]
[1759190440361,33.26,213.12,213.11,5.36241236]
[1759190440667,33.26,213.12,213.11,4.69241236]
[1759190440968,33.26,213.12,213.11,5.36241236]
[1759190442442,33.26,213.12,213.11,4.69241236]
[1759190442869,38.63229536,213.12,213.1,0.1]
[1759190443064,50.36277584,213.12,213.09,0.1]
[1759190443265,50.36277584,213.12,213.07,0.1]
[1759190443266,3.15646215,213.11,213.07,0.1]
[1759190443445,3.15646215,213.11,213.02,0.1]
[1759190443446,13.59559401,213.08,213.02,0.1]
[1759190443649,37.07646215,213.07,213.02,0.1]
[1759190443961,3.15646215,213.06,213.02,0.1]
[1759190444163,17.15759243,213.06,213.02,0.1]
[1759190444344,33.92,213.05,213.02,0.1]
[1759190444545,3.15646215,213.05,213.02,0.1]
[1759190444764,33.24,213.04,213.03,0.67]
[1759190445945,33.24,213.04,213.03,14.26559401]
[1759190446481,33.24,213.04,213.03,18.95976853]
[1759190447843,33.24,213.05,213.04,13.59559401]
[1759190448044,33.24,213.05,213.02,0.1]
[1759190448274,33.24,213.05,213.04,26.0]
[1759190448457,33.24,213.05,213.04,31.36395418]
[1759190451359,33.24,213.05,213.04,30.69395418]
[1759190451751,33.24,213.05,213.04,31.34395418]
[1759190451955,33.24,213.05,213.04,45.45861225]
[1759190452766,33.24,213.05,213.04,30.69395418]
[1759190453649,33.24,213.05,213.04,31.34395418]
[1759190453850,33.24,213.05,213.04,30.69395418]
[1759190454046,33.91,213.05,213.04,30.69395418]
[1759190454572,33.24,213.05,213.04,30.69395418]
[1759190456949,33.24,213.05,213.04,31.34395418]
[1759190458379,33.24,213.05,213.04,45.45927637]
[1759190460470,33.24,213.05,213.04,31.34395418]
[1759190461266,33.24,213.05,213.04,45.45927637]
[1759190463075,0.67,213.11,213.04,57.19416183]
[1759190463276,33.22,213.1,213.05,0.65]
[1759190463458,33.89,213.1,213.06,0.65]
[1759190464574,33.89,213.1,213.07,4.69329328]
[1759190465166,33.22,213.1,213.08,0.65]
[1759190466358,33.89,213.1,213.07,16.42652648]
[1759190466659,0.67,213.09,213.07,4.69329328]
[1759190467361,0.67,213.08,212.87,2.45371687]
[1759190467564,26.0,212.98,212.87,2.45371687]
[1759190467864,26.0,212.98,212.86,1.24206865]
[1759190467865,33.89,212.97,212.86,1.24206865]
[1759190468270,36.34363361,212.97,212.86,0.59206865]
[1759190468471,36.34363361,212.97,212.9,4.6970304]
[1759190468675,41.0391411,212.97,212.9,4.6970304]
[1759190468871,36.34363361,212.97,212.9,4.6970304]
[1759190469572,0.67,212.96,212.9,4.6970304]
[1759190469974,0.67,212.95,212.9,4.6970304]
[1759190470491,0.67,212.95,212.87,11.74408265]
[1759190470492,0.67,212.95,212.89,4.79725893]
[1759190471063,2.45363361,212.97,212.89,16.54041267]
[1759190471267,33.24,212.96,212.89,16.54041267]
[1759190471494,33.24,212.95,212.89,16.54041267]
[1759190472172,33.24,212.95,212.94,0.65000001]
[1759190472375,33.24,212.95,212.94,5.34615855]
[1759190475491,33.24,212.95,212.94,4.69615855]
[1759190476190,33.24,212.95,212.94,5.36615855]
[1759190477391,33.24,212.95,212.94,1e-08]
[1759190477579,33.92,212.95,212.94,1e-08]
[1759190481272,38.61593801,212.95,212.94,1e-08]
[1759190485182,37.93593801,212.95,212.94,1e-08]
[1759190485375,38.61593801,212.95,212.94,1e-08]
[1759190485881,33.24,212.95,212.94,1e-08]
[1759190486074,33.92,212.95,212.94,1e-08]
[1759190486275,33.24,212.95,212.94,1e-08]
[1759190487589,38.61593801,212.95,212.94,1e-08]
[1759190487979,38.61593801,212.95,212.89,0.1]
[1759190488482,38.61593801,212.95,212.89,5.49722995]
[1759190489910,33.24,212.95,212.9,0.7]
[1759190490110,33.84,213.03,212.94,26.0]
[1759190490401,33.26,213.02,212.95,0.7]
[1759190493093,33.26,213.02,212.96,4.6957175]
[1759190493412,33.26,213.02,212.97,0.7]
[1759190493715,33.26,213.02,212.96,4.6957175]
[1759190493716,33.26,213.02,212.98,0.7]
[1759190494609,14.27559401,213.01,212.89,0.8]
[1759190494781,17.40815995,213.01,212.89,4.79725755]
[1759190494987,0.68,213.0,212.9,26.0]
[1759190495193,4.69527655,212.98,212.91,4.69682025]
[1759190495390,0.68,212.97,212.91,4.69682025]
[1759190495605,33.28,212.96,212.92,0.7]
[1759190496109,33.28,212.96,212.91,4.69682025]
[1759190496410,33.96,212.96,212.91,5.39682025]
[1759190496701,33.28,212.96,212.91,5.39682025]
[1759190496893,33.28,212.96,212.92,0.7]
[1759190497094,33.28,212.96,212.91,16.43887088]
[1759190497291,33.28,212.96,212.93,0.7]
[1759190498188,33.28,212.96,212.94,0.7]
[1759190498510,33.28,212.96,212.95,0.7]
[1759190499418,60.52,213.03,212.95,0.7]
[1759190499710,33.26,213.02,212.95,0.7]
[1759190500084,33.26,213.02,212.96,26.0]
[1759190500388,33.26,213.02,212.97,17.13423955]
[1759190500783,33.26,213.02,212.98,0.7]
[1759190502604,33.26,213.02,212.99,4.6950561]
[1759190503511,33.26,213.02,212.97,17.13423955]
[1759190503691,33.26,213.02,212.98,0.7]
[1759190503891,33.26,213.02,212.97,16.43423955]
[1759190503892,33.26,213.02,212.99,0.7]
[1759190504207,33.26,213.02,212.97,16.43423955]
[1759190504398,33.26,213.02,212.98,0.7]
[1759190504797,33.26,213.02,212.99,16.43269636]
[1759190505002,33.26,213.02,213.0,0.7]
[1759190505406,33.26,213.02,213.01,0.7]
[1759190505791,33.26,213.02,212.99,16.43269636]
[1759190505991,33.26,213.02,213.0,0.7]
[1759190508515,33.26,213.02,212.98,4.69527655]
[1759190508516,33.94,213.02,212.98,4.69527655]
[1759190509415,0.68,213.01,212.98,4.69527655]
[1759190509617,0.68,213.01,212.96,11.73882443]
[1759190509618,33.24,213.0,212.96,42.43454193]
[1759190509818,33.24,213.0,212.96,43.13454193]
[1759190510004,33.24,213.0,212.97,0.7]
[1759190510517,33.24,213.0,212.98,0.7]
[1759190510898,33.84,213.03,212.98,0.7]
[1759190511105,33.24,213.02,212.99,0.7]
[1759190511835,5.25886962,213.13,213.02,26.0]
[1759190511836,0.68,213.12,213.02,26.0]
[1759190512117,0.68,213.14,213.04,13.59559401]
[1759190512318,35.34456224,213.13,213.05,0.68]
[1759190513199,32.2,213.13,213.05,0.68]
[1759190513809,32.2,213.13,213.06,16.42729747]
[1759190514108,32.2,213.13,213.07,0.68]
[1759190515209,32.2,213.13,213.08,4.69307302]
[1759190515410,32.88,213.13,213.08,17.10575558]
[1759190516601,32.2,213.13,213.08,16.42575558]
[1759190516918,32.2,213.13,213.09,0.68]
[1759190517217,32.2,213.13,213.08,26.0]
[1759190517407,32.2,213.13,213.1,0.68]
[1759190518430,32.2,213.13,213.11,4.69241236]
[1759190520024,32.2,213.13,213.1,11.73147354]
[1759190523232,32.2,213.13,213.09,5.37285278]
[1759190523606,0.68,213.12,213.09,4.69285278]
[1759190523808,32.2,213.13,213.04,14.27559401]
[1759190523809,0.68,213.11,213.07,4.6930758]
[1759190524014,0.68,213.1,213.06,11.73348566]
[1759190524310,0.68,213.1,213.06,16.42699922]
[1759190524518,0.68,213.12,213.06,17.10699922]
[1759190527039,32.2,213.13,213.07,0.68]
[1759190528838,32.2,213.13,213.08,16.42575558]
[1759190529016,32.2,213.13,213.09,0.68]
[1759190530230,32.2,213.13,213.1,16.42421397]
[1759190530420,32.2,213.13,213.11,0.68]
[1759190532237,32.2,213.13,213.12,4.69219219]
[1759190534041,0.2,213.18,213.12,43.10267267]
[1759190534241,0.2,213.18,213.13,0.68]
[1759190534541,33.22,213.17,213.14,0.68]
[1759190535317,33.22,213.17,213.12,43.13267267]
[1759190535626,33.22,213.17,213.13,0.71]
[1759190536139,33.22,213.17,213.14,16.42113165]
[1759190536344,33.22,213.17,213.14,17.13113165]
[1759190539950,33.22,213.17,213.14,4.6917519]
[1759190540334,0.67,213.16,213.14,4.6917519]
[1759190540955,33.89,213.17,213.14,4.6917519]
[1759190541822,33.22,213.17,213.14,4.6917519]
[1759190542023,0.68,213.16,213.14,4.6917519]
[1759190542420,0.68,213.16,213.13,4.69197203]
[1759190543731,33.22,213.17,213.13,4.69197203]
[1759190544643,33.22,213.17,213.13,5.39197203]
[1759190544844,33.9,213.17,213.13,4.69197203]
[1759190545835,33.9,213.17,213.08,11.73244168]
[1759190546131,33.9,213.17,213.11,26.7]
[1759190546833,33.22,213.17,213.12,0.7]
[1759190547033,33.22,213.17,213.13,0.7]
[1759190548554,33.22,213.17,213.14,4.6917519]
[1759190548941,33.22,213.17,213.15,0.7]
[1759190549339,33.22,213.17,213.14,4.6917519]
[1759190549649,33.22,213.17,213.14,5.3917519]
[1759190550054,33.22,213.17,213.14,4.6917519]
[1759190550358,33.22,213.17,213.15,0.7]
[1759190550552,33.22,213.17,213.16,0.7]
[1759190551146,33.22,213.17,213.14,0.7]
[1759190551539,33.22,213.17,213.15,0.7]
[1759190552152,33.22,213.17,213.16,4.69131169]
[1759190554544,0.2,213.18,213.16,5.39131169]
[1759190554864,0.2,213.18,213.16,4.69131169]
[1759190554865,33.2,213.17,213.16,4.69131169]
[1759190555256,33.2,213.17,213.16,5.39131169]
[1759190557460,33.2,213.17,213.16,18.9869057]
[1759190558161,0.2,213.18,213.17,13.59559401]
[1759190558346,0.2,213.18,213.17,14.29559401]
[1759190558934,0.2,213.18,213.16,4.69131169]
[1759190559141,0.68,213.17,213.12,4.69219219]
[1759190559340,0.2,213.18,213.14,13.59559401]
[1759190559652,0.2,213.18,213.13,0.7]
[1759190559653,0.2,213.18,213.15,26.0]
[1759190559851,0.88,213.18,213.15,26.0]
[1759190560249,0.88,213.18,213.13,0.7]
[1759190560657,0.88,213.18,213.15,26.0]
[1759190561164,0.88,213.18,213.15,30.69136047]
[1759190562445,0.2,213.18,213.15,30.69136047]
[1759190566562,0.2,213.18,213.15,31.39136047]
[1759190570068,0.2,213.18,213.16,0.7]
[1759190570466,33.4,213.18,213.16,0.7]
[1759190571481,33.4,213.18,213.17,4.69109161]
[1759190571677,33.4,213.18,213.17,5.41109161]
[1759190572882,33.4,213.18,213.17,4.69109161]
[1759190573078,33.4,213.18,213.17,5.41109161]
[1759190574480,33.4,213.18,213.17,4.69109161]
[1759190575465,33.4,213.18,213.16,4.69130601]
[1759190576360,33.4,213.18,213.16,5.41130601]
[1759190578290,34.08,213.18,213.14,30.69162055]
[1759190578596,0.68,213.17,213.11,30.6923836]
[1759190578795,38.0908948,213.18,213.09,4.69285278]
[1759190578796,3.83751291,213.16,213.09,4.69285278]
[1759190578964,3.83751291,213.15,213.07,4.69309201]
[1759190579172,36.35751291,213.14,213.08,0.72]
[1759190579372,33.2,213.14,213.1,26.0]
[1759190579705,5.5708948,213.18,213.11,0.72]
[1759190579872,36.35642999,213.17,213.11,0.72]
[1759190580071,3.15642999,213.16,213.11,0.72]
[1759190580285,3.83642999,213.15,213.11,4.69241236]
[1759190580497,3.83642999,213.14,213.11,4.69241236]
[1759190580697,33.2,213.13,213.11,4.69241236]
[1759190581199,33.2,213.13,213.1,30.69262521]
[1759190581385,33.88,213.13,213.1,26.0]
[1759190581582,33.88,213.13,213.04,11.73449958]
[1759190581583,0.68,213.12,213.04,11.73449958]
[1759190581777,3.15537083,213.12,213.05,0.72]
[1759190582173,33.88,213.13,213.05,0.72]
[1759190582374,33.2,213.13,213.06,16.42729747]
[1759190582577,33.2,213.13,213.07,0.72]
[1759190582799,33.2,213.12,213.09,26.0]
[1759190583096,33.2,213.12,213.1,0.72]
[1759190584094,33.2,213.12,213.11,4.69241236]
[1759190584274,33.2,213.12,213.11,5.41241236]
[1759190586301,33.2,213.12,213.11,4.69241236]
[1759190586705,33.2,213.12,213.11,5.41241236]
[1759190586996,33.2,213.12,213.11,4.69241236]
[1759190587697,33.2,213.12,213.1,4.69263256]
[1759190587903,33.2,213.12,213.11,0.72]
[1759190588205,33.2,213.12,213.1,4.69263256]
[1759190588405,33.2,213.12,213.1,5.41263256]
[1759190588696,33.2,213.12,213.1,4.69263256]
[1759190588904,33.2,213.12,213.11,5.41241236]
[1759190590784,33.2,213.12,213.11,4.69241236]
[1759190590992,33.2,213.12,213.11,5.41241236]
[1759190591675,0.2,213.18,213.14,26.0]
[1759190591880,33.4,213.18,213.15,0.72]
[1759190592090,33.4,213.18,213.16,0.72]
[1759190593093,0.68,213.17,213.1,0.72]
[1759190594988,4.69131169,213.16,213.09,4.69285278]
[1759190595310,0.68,213.15,213.09,4.69285278]
[1759190595601,33.88,213.14,213.09,4.69285278]
[1759190595803,33.2,213.14,213.09,5.36285278]
[1759190595994,33.88,213.14,213.1,4.69242196]
[1759190597114,33.2,213.14,213.1,4.69242196]
[1759190597295,0.68,213.16,213.11,0.67]
[1759190597610,33.88,213.15,213.11,0.67]
[1759190598201,33.88,213.15,213.12,4.69219219]
[1759190598607,33.88,213.15,213.1,4.6924381]
[1759190598919,0.68,213.14,213.1,4.6924381]
[1759190599523,0.68,213.13,213.08,4.69307302]
[1759190599705,0.68,213.12,213.08,4.69307302]
[1759190599896,33.88,213.11,213.08,4.69307302]
[1759190600299,33.88,213.11,213.07,16.42610032]
[1759190600900,33.2,213.11,213.07,16.42610032]
[1759190601091,33.2,213.11,213.08,0.67]
[1759190601725,131.6,213.16,213.1,26.0]
[1759190601897,33.2,213.15,213.11,0.72]
[1759190602404,33.2,213.15,213.12,4.69219219]
[1759190605013,33.2,213.15,213.1,11.73136853]
[1759190605320,131.6,213.16,213.11,26.72]
[1759190605616,33.2,213.15,213.11,26.0]
[1759190605919,33.86,213.15,213.11,26.0]
[1759190606217,33.2,213.15,213.12,0.72]
[1759190606921,33.2,213.15,213.13,4.69197203]
[1759190610716,33.2,213.15,213.11,17.14344328]
[1759190610910,33.2,213.15,213.11,16.42344328]
[1759190611218,33.2,213.15,213.12,0.72]
[1759190611717,33.2,213.15,213.13,4.69197203]
[1759190616325,33.2,213.15,213.12,4.69219219]
[1759190616525,33.86,213.15,213.12,4.69219219]
[1759190616741,0.66,213.14,213.12,4.69219219]
[1759190617027,33.2,213.13,213.12,30.69219219]
[1759190617531,33.86,213.13,213.11,4.69237433]
[1759190618322,33.2,213.13,213.09,5.41285278]
[1759190618526,0.66,213.12,213.09,4.69285278]
[1759190618728,33.2,213.11,213.09,4.69285278]
[1759190620000,33.2,213.11,213.09,5.41285278]
[1759190620505,33.2,213.11,213.1,0.72]
[1759190621405,33.2,213.11,213.09,4.69285278]
[1759190622428,0.66,213.14,213.09,4.69285278]
[1759190622429,0.66,213.14,213.09,5.41285278]
[1759190622615,33.86,213.13,213.09,4.69285278]
[1759190623019,33.86,213.13,213.09,5.41285278]
[1759190623020,33.2,213.13,213.09,5.41285278]
[1759190623919,33.86,213.13,213.09,5.41285278]
[1759190624120,33.86,213.13,213.09,4.69285278]
[1759190624308,0.66,213.12,213.09,4.69285278]
[1759190624513,0.66,213.11,213.09,4.69285278]
[1759190624714,33.2,213.1,213.09,4.69285278]
[1759190625130,33.2,213.1,213.08,26.0]
[1759190625709,33.2,213.1,213.08,30.69302736]
[1759190628311,33.2,213.1,213.08,31.41302736]
[1759190628713,33.2,213.1,213.08,30.69302736]
[1759190628912,33.2,213.1,213.09,0.72]
[1759190630741,33.2,213.1,213.09,5.41285278]
[1759190636738,33.2,213.16,213.13,26.0]
[1759190636943,33.2,213.16,213.14,0.66]
[1759190637344,33.2,213.16,213.15,4.69153178]
[1759190637544,36.35381982,213.16,213.15,4.69153178]
[1759190637721,33.2,213.16,213.15,4.69153178]
[1759190640356,33.2,213.16,213.15,0.66]
[1759190640655,0.2,213.23,213.17,39.59559401]
[1759190640867,33.2,213.22,213.17,40.25559401]
[1759190641353,33.88,213.22,213.17,26.0]
[1759190641541,33.88,213.22,213.17,26.66]
[1759190641742,33.2,213.22,213.17,26.66]
[1759190642448,33.2,213.22,213.17,31.35109161]
[1759190644944,0.68,213.21,213.17,30.69109161]
[1759190645830,0.68,213.2,213.17,30.69109161]
[1759190646857,0.88,213.18,213.15,4.69137098]
[1759190647062,0.68,213.17,213.15,4.69137098]
[1759190647559,33.18,213.16,213.15,4.69137098]
[1759190648136,33.86,213.16,213.14,26.0]
[1759190648353,33.86,213.16,213.13,4.69176122]
[1759190648592,0.68,213.15,213.13,4.69176122]
[1759190649155,0.68,213.15,213.11,16.4229973]
[1759190650966,33.18,213.16,213.12,0.66]
[1759190651162,33.18,213.16,213.11,16.4229973]
[1759190651346,33.18,213.15,213.13,0.66]
[1759190651759,33.18,213.15,213.11,17.0829973]
[1759190652764,33.86,213.15,213.11,16.4229973]
[1759190653162,33.86,213.15,213.11,17.0829973]
[1759190654058,0.68,213.14,213.11,4.69241236]
[1759190654263,0.68,213.13,213.12,26.0]
[1759190654472,33.86,213.15,213.12,26.0]
[1759190654644,0.68,213.14,213.12,26.0]
[1759190655356,0.68,213.14,213.11,30.69241236]
[1759190655555,0.68,213.13,213.11,4.69241236]
[1759190655957,33.18,213.15,213.09,4.69285278]
[1759190656165,33.86,213.15,213.09,4.69285278]
[1759190656667,0.68,213.14,213.09,4.69285278]
[1759190656976,0.68,213.13,213.09,30.69285278]
[1759190657170,0.68,213.12,213.09,30.69285278]
[1759190658370,0.68,213.12,213.09,4.69285278]
[1759190660255,0.68,213.14,213.09,4.69285278]
[1759190660459,0.68,213.13,213.09,4.69285278]
[1759190661372,33.86,213.15,213.09,4.69285278]
[1759190661580,33.86,213.15,213.1,0.66]
[1759190662079,33.86,213.15,213.11,4.69241236]
[1759190662282,0.68,213.14,213.11,4.69241236]
[1759190663564,33.18,213.15,213.11,4.69241236]
[1759190663966,33.86,213.15,213.11,4.69241236]
[1759190664269,33.18,213.15,213.11,0.66]
[1759190664580,33.18,213.14,213.11,0.66]
[1759190664873,33.18,213.14,213.08,16.42575558]
[1759190665077,33.18,213.14,213.1,0.66]
[1759190666977,33.18,213.14,213.11,0.66]
[1759190667167,33.18,213.14,213.12,0.66]
[1759190667375,33.18,213.14,213.13,0.66]
[1759190667562,33.18,213.14,213.08,16.42575558]
[1759190667768,33.18,213.14,213.11,0.66]
[1759190668375,132.28,213.16,213.11,0.66]
[1759190668376,33.18,213.13,213.11,0.66]
[1759190668975,33.18,213.13,213.12,5.35219219]
[1759190670487,33.18,213.13,213.1,11.73156005]
[1759190670788,33.18,213.13,213.07,31.35324355]
[1759190670789,0.68,213.12,213.07,31.35324355]
[1759190670987,0.68,213.12,213.08,0.66]
[1759190671868,33.18,213.13,213.08,0.66]
[1759190672069,33.18,213.13,213.09,0.66]
[1759190672467,131.6,213.16,213.11,4.69241236]
[1759190672671,33.18,213.15,213.12,0.66]
[1759190672875,33.18,213.15,213.13,0.66]
[1759190673183,33.18,213.15,213.11,16.42344328]
[1759190673381,33.18,213.15,213.12,0.66]
[1759190674789,33.86,213.15,213.1,0.66]
[1759190674987,33.86,213.15,213.11,0.66]
[1759190675596,33.18,213.15,213.12,0.66]
[1759190676075,33.18,213.15,213.13,0.66]
[1759190676589,33.18,213.15,213.14,4.6917519]
[1759190676791,33.18,213.15,213.14,5.3517519]
[1759190677797,33.18,213.15,213.12,5.35219219]
[1759190680994,33.18,213.15,213.13,0.66]
[1759190681376,33.16,213.14,213.13,0.66]
[1759190682894,33.16,213.14,213.13,17.08190211]
[1759190687392,0.2,213.18,213.16,26.0]
[1759190687789,0.2,213.18,213.17,0.66]
[1759190688897,0.2,213.18,213.17,5.35109161]
[1759190689279,0.2,213.18,213.17,31.35109161]
[1759190699037,0.2,213.18,213.17,44.94668562]
[1759190699227,0.2,213.23,213.21,26.0]
[1759190699426,0.2,213.23,213.22,0.68]
[1759190700448,0.2,213.32,213.25,26.0]
[1759190700659,0.2,213.32,213.25,26.68]
[1759190700660,33.82,213.31,213.25,26.68]
[1759190701169,33.82,213.31,213.26,16.41189158]
[1759190701646,0.68,213.3,213.26,16.41189158]
[1759190701847,0.68,213.3,213.26,30.18749768]
[1759190702354,33.14,213.31,213.26,30.86749768]
[1759190702538,33.82,213.31,213.26,30.86749768]
[1759190704986,33.82,213.31,213.28,4.68867216]
[1759190705951,33.14,213.3,213.28,4.68867216]
[1759190706349,33.14,213.3,213.29,0.68]
[1759190706550,0.2,213.32,213.29,0.68]
[1759190706736,0.2,213.32,213.3,26.0]
[1759190707046,0.2,213.32,213.31,0.68]
[1759190707642,0.2,213.32,213.3,26.0]
[1759190707844,0.2,213.32,213.3,26.68]
[1759190709158,0.2,213.32,213.31,4.68801275]
[1759190709847,0.2,213.32,213.31,31.36801275]
[1759190712052,0.2,213.32,213.31,44.96360676]
[1759190712837,1e-08,213.32,213.31,44.96360676]
[1759190714448,1e-08,213.32,213.31,78.08360676]
[1759190716564,1e-08,213.32,213.31,78.06360676]
[1759190723267,1e-08,213.32,213.31,4.68801275]
[1759190723443,1e-08,213.32,213.31,30.68801275]
[1759190724269,0.68000001,213.32,213.31,30.68801275]
[1759190725361,0.68000001,213.32,213.31,4.68801275]
[1759190725672,0.68000001,213.32,213.31,26.0]
[1759190725972,1e-08,213.32,213.31,26.0]
[1759190726879,1e-08,213.32,213.31,30.68801275]
[1759190727182,0.68000001,213.32,213.31,30.68801275]
[1759190728595,1e-08,213.32,213.31,30.68801275]
[1759190730650,1e-08,213.32,213.31,31.36801275]
[1759190730857,1e-08,213.32,213.31,30.68801275]
[1759190739760,1e-08,213.32,213.31,31.36801275]
[1759190740263,1e-08,213.32,213.31,30.68801275]